bitfinex/quotes_ETHUSD_20230905
["timestamp","ask_amount","ask_price","bid_price","bid_amount"]
[1693927587968,10.09454569,1636.7,1636.2,6.11151]
[1693927588176,1.00945457,1636.6,1636.2,6.11151]
[1693927588360,3.06701426,1636.5,1636.1,6.11182]
[1693927588671,3.06701426,1636.5,1636.1,6.11209]
[1693927589040,9.17761426,1636.5,1636.1,6.11209]
[1693927590058,3.06701426,1636.5,1636.1,18.33627]
[1693927590234,6.10918,1636.9,1636.1,20.781118]
[1693927590437,3.06701426,1636.8,1636.3,18.33315]
[1693927590661,3.06701426,1636.8,1636.3,18.94608205]
[1693927590864,8.38931,1637.1,1636.6,12.22038]
[1693927591096,1.13279764,1636.5,1636.4,6.11097]
[1693927591283,4.1998119,1636.5,1636.4,11.58473857]
[1693927591595,1.13279764,1636.5,1636.4,19.46528743]
[1693927591795,1.13279764,1636.5,1636.4,22.46528743]
[1693927592362,1.13279764,1636.5,1636.4,5.47376857]
[1693927592561,1.13279764,1636.5,1636.3,6.11117]
[1693927592788,1.13279764,1636.5,1636.4,6.11097]
[1693927592989,1.13279764,1636.5,1636.3,6.11117]
[1693927593197,4.1998119,1636.5,1636.2,6.11155]
[1693927593406,4.61979309,1636.5,1636.2,6.11155]
[1693927593587,3.06701426,1636.4,1636.1,6.11178]
[1693927593787,3.06701426,1636.4,1636.2,6.11169]
[1693927594206,1.13279764,1636.5,1636.2,18.33513]
[1693927594369,1.13279764,1636.5,1636.2,18.94806205]
[1693927594568,1.13279764,1636.5,1636.3,1.89480621]
[1693927594797,1.13279764,1636.5,1636.4,12.22194]
[1693927594998,1.13279764,1636.5,1636.2,6.11168]
[1693927596003,1.13279764,1636.5,1636.2,12.2234]
[1693927596307,1.13279764,1636.5,1636.2,18.94805205]
[1693927596802,10.3104119,1636.5,1636.0,6.11227]
[1693927597001,4.09805545,1636.4,1635.9,6.11262]
[1693927597178,3.06701426,1636.2,1635.5,8.559933]
[1693927597380,6.11248,1636.0,1635.5,14.674263]
[1693927597698,3.06701426,1635.9,1635.5,14.674263]
[1693927597898,15.29272426,1635.9,1635.4,6.11468]
[1693927598128,1.52927243,1635.8,1635.4,6.1147]
[1693927598300,3.06701426,1635.7,1635.4,6.1147]
[1693927598798,3.06701426,1635.7,1635.3,6.21489]
[1693927598799,3.06701426,1635.7,1635.3,12.32974]
[1693927599524,3.06701426,1635.7,1635.3,6.21486]
[1693927599686,9.18064426,1635.7,1635.3,0.1]
[1693927600017,6.42077143,1635.6,1635.3,0.1]
[1693927600205,3.06701426,1635.5,1635.3,0.1]
[1693927600789,9.18143426,1635.5,1635.3,0.1]
[1693927601128,3.06701426,1635.4,1635.3,0.1]
[1693927601417,22.32928769,1635.4,1635.3,0.1]
[1693927601623,21.41114426,1635.4,1635.3,0.1]
[1693927601790,21.41114426,1635.4,1635.3,0.32307328]
[1693927602224,21.65593726,1635.4,1635.3,0.32307328]
[1693927602788,18.54122726,1635.4,1635.1,0.1]
[1693927603018,18.54122726,1635.4,1635.3,0.21334864]
[1693927603326,27.65593726,1635.4,1635.1,0.1]
[1693927603527,24.65593726,1635.4,1635.1,0.1]
[1693927603826,21.588923,1635.4,1635.3,0.2125288]
[1693927604026,28.2934488,1635.4,1635.3,0.2125288]
[1693927604188,28.2934488,1635.4,1635.1,0.1]
[1693927604590,28.2934488,1635.4,1635.2,0.21238937]
[1693927604791,2.64,1635.3,1635.2,0.21238937]
[1693927604987,2.64,1635.3,1635.0,0.1]
[1693927604988,3.0,1635.2,1635.0,0.1]
[1693927605239,3.0,1634.9,1634.6,0.1]
[1693927605402,12.18398426,1634.8,1634.6,0.1]
[1693927605635,15.30095426,1634.8,1634.7,0.20275665]
[1693927605955,24.12371469,1634.8,1634.7,0.20275665]
[1693927606144,24.12371469,1634.8,1634.6,0.1]
[1693927607081,5.70701426,1634.7,1634.6,0.1]
[1693927607359,5.70701426,1634.7,1633.9,6.22027]
[1693927607360,5.64,1634.5,1633.9,0.1]
[1693927607524,21.42686426,1634.0,1633.9,0.1]
[1693927607726,6.11787,1634.6,1633.9,12.34047]
[1693927607931,3.06701426,1634.4,1634.0,1.234047]
[1693927608254,6.11885,1634.3,1634.0,0.2003202]
[1693927608456,3.06701426,1634.3,1634.0,0.0503202]
[1693927608658,9.18621426,1634.2,1634.0,0.0503202]
[1693927608820,3.06701426,1634.2,1634.0,0.18155208]
[1693927609422,9.18640426,1634.2,1634.0,0.18155208]
[1693927609665,9.18640426,1634.2,1633.9,0.1]
[1693927609666,3.06701426,1634.2,1633.9,6.22013]
[1693927610031,3.06701426,1634.2,1634.1,0.18155208]
[1693927610227,10.10481769,1634.2,1634.1,0.18155208]
[1693927610423,27.98321769,1634.2,1634.1,0.18155208]
[1693927610623,27.98321769,1634.2,1633.9,0.1]
[1693927610624,30.98321769,1634.2,1633.9,0.1]
[1693927610861,3.06701426,1634.0,1633.9,0.1]
[1693927611023,15.30691426,1634.0,1633.9,0.1]
[1693927611226,28.84953069,1634.0,1633.9,0.1]
[1693927611532,32.20953069,1634.0,1633.9,0.1]
[1693927611726,27.4828,1633.8,1633.7,0.1]
[1693927611948,36.18981426,1633.8,1633.7,0.1]
[1693927612682,36.18981426,1633.8,1632.9,0.1]
[1693927612683,3.0,1633.4,1632.9,0.1]
[1693927612889,47.94981426,1633.8,1632.9,0.1]
[1693927612890,24.43529426,1633.3,1632.9,0.1]
[1693927613197,6.12126,1633.7,1632.9,18.47201]
[1693927613349,3.06701426,1633.6,1633.0,2.00365446]
[1693927613552,3.06701426,1633.6,1633.2,6.12291]
[1693927613749,9.18854426,1633.6,1633.1,6.12302]
[1693927613955,9.18854426,1633.6,1633.1,12.24615]
[1693927614166,0.2,1633.2,1633.1,6.12302]
[1693927614371,0.2,1633.2,1633.1,19.79467945]
[1693927614588,0.6,1633.5,1633.3,3.0]
[1693927614799,0.6,1633.5,1633.4,18.36657]
[1693927615082,0.6,1633.5,1633.4,9.12219]
[1693927615287,0.6,1633.5,1633.4,15.24438]
[1693927615451,0.6,1633.5,1633.2,6.12291]
[1693927615787,0.6,1633.5,1633.1,12.24622]
[1693927615990,3.66701426,1633.5,1633.2,6.12282]
[1693927616483,0.6,1633.5,1633.1,6.12304]
[1693927616790,0.6,1633.5,1633.2,18.36882]
[1693927617352,0.6,1633.5,1633.3,9.31994631]
[1693927617585,0.6,1633.5,1633.4,21.36657]
[1693927617798,0.6,1633.5,1633.4,22.45950205]
[1693927618088,0.6,1633.5,1633.4,25.88169726]
[1693927618287,0.26350118,1633.6,1633.4,31.94871152]
[1693927618495,0.26350118,1633.6,1633.5,3.67994631]
[1693927618788,0.26350118,1633.6,1633.5,22.45839205]
[1693927619397,0.26350118,1633.6,1633.5,21.97839205]
[1693927619591,0.26350118,1633.6,1633.5,23.51310241]
[1693927621170,1.18e-06,1633.6,1633.5,32.70193667]
[1693927621494,1.18e-06,1633.6,1633.5,38.86071434]
[1693927621689,1.18e-06,1633.6,1633.5,39.47441434]
[1693927622082,0.63496076,1634.4,1633.9,3.0]
[1693927622278,0.63496076,1634.4,1634.1,3.0]
[1693927622480,0.63496076,1634.4,1634.2,31.15674631]
[1693927622683,0.44206076,1634.4,1634.3,6.11567463]
[1693927623002,0.95244115,1634.5,1634.0,15.44076]
[1693927623003,0.95244115,1634.5,1634.0,6.11976]
[1693927623202,3.06701426,1634.1,1633.5,0.15877767]
[1693927623403,7.07070115,1634.5,1633.5,18.52372767]
[1693927623608,0.95244115,1634.5,1633.7,3.0]
[1693927623898,3.06701426,1634.4,1633.9,12.24034]
[1693927624202,0.95244115,1634.5,1633.9,18.36066]
[1693927625307,4.01945541,1634.5,1633.9,18.36066]
[1693927625602,8.48472,1634.7,1633.9,18.36066]
[1693927625801,3.06701426,1634.6,1633.9,18.36066]
[1693927626379,6.11511,1635.3,1634.1,9.394]
[1693927626578,6.19218426,1635.1,1634.4,18.35457]
[1693927627183,2.2546,1635.2,1634.5,3.48]
[1693927627494,2.2546,1635.2,1634.7,12.23406]
[1693927627683,2.5136,1635.3,1634.7,18.35139]
[1693927627888,3.06701426,1635.2,1634.7,18.35139]
[1693927628088,2.5136,1635.3,1634.7,18.35139]
[1693927628286,3.06701426,1635.3,1634.7,20.798278]
[1693927629479,3.06701426,1635.2,1634.7,20.798278]
[1693927629793,3.06701426,1635.2,1634.7,18.35139]
[1693927630197,4.7682,1635.5,1634.7,18.35139]
[1693927630522,7.37021717,1635.7,1635.0,18.34851]
[1693927630691,3.06701426,1635.6,1635.0,18.34851]
[1693927630883,3.76357717,1635.7,1635.0,18.34851]
[1693927630884,6.83059143,1635.7,1635.1,0.48]
[1693927631077,3.06701426,1635.6,1635.1,0.48]
[1693927631278,4.76118043,1635.7,1635.1,18.34744]
[1693927631502,7.82819469,1635.7,1635.1,18.34744]
[1693927631811,1.25647717,1635.7,1635.2,10.55394631]
[1693927631978,1.25647717,1635.7,1635.3,21.34467]
[1693927632384,1.25647717,1635.7,1635.3,18.34467]
[1693927633008,0.63052784,1635.9,1635.3,18.34467]
[1693927633211,3.06701426,1635.7,1635.3,18.34467]
[1693927633377,3.06701426,1635.6,1635.3,6.11489]
[1693927633711,3.06701426,1635.4,1634.7,6.11717]
[1693927633911,9.18200426,1635.4,1634.9,12.23311]
[1693927635022,3.06701426,1635.4,1634.9,18.34969]
[1693927635477,4.7309,1635.5,1634.9,18.34969]
[1693927635684,7.79791426,1635.5,1635.0,1.834969]
[1693927635912,7.79791426,1635.5,1635.1,18.34711]
[1693927636228,2.4983,1635.8,1635.1,18.34711]
[1693927636389,3.06701426,1635.7,1635.1,12.23128]
[1693927636587,3.06701426,1635.7,1635.1,18.34711]
[1693927636906,0.30670143,1635.6,1635.1,18.34711]
[1693927637104,3.06701426,1635.5,1635.0,12.23182]
[1693927637419,3.06701426,1635.5,1635.0,12.23175]
[1693927637593,3.06701426,1635.5,1635.1,12.23163]
[1693927637781,3.06701426,1635.5,1635.1,18.34746]
[1693927637988,0.30670143,1635.6,1635.1,17.21347306]
[1693927638189,2.22517429,1635.6,1635.1,17.82640511]
[1693927638419,1.59464645,1635.6,1635.1,18.96042205]
[1693927638618,1.06309763,1635.6,1635.1,18.96042205]
[1693927638785,3.06701426,1635.5,1635.1,18.96042205]
[1693927638985,3.06701426,1635.5,1635.1,12.23166]
[1693927639307,3.06701426,1635.5,1635.1,6.11572]
[1693927639308,0.30670143,1635.4,1635.1,6.11572]
[1693927639514,0.30670143,1635.4,1635.1,12.23155]
[1693927639714,3.06701426,1635.3,1635.0,12.23187]
[1693927640896,3.06701426,1635.3,1635.0,6.11583]
[1693927641093,3.06701426,1635.2,1634.6,6.11749]
[1693927641393,3.06701426,1635.2,1634.6,18.3527]
[1693927641394,0.30670143,1635.1,1634.6,18.3527]
[1693927641602,3.06701426,1635.0,1634.6,18.3527]
[1693927642022,0.30670143,1635.1,1634.6,18.3527]
[1693927642201,3.37371569,1635.1,1634.6,18.3527]
[1693927642400,2.2945,1635.2,1634.6,18.3527]
[1693927642822,2.2945,1635.2,1634.8,18.35028]
[1693927643796,5.36151426,1635.2,1634.8,18.35028]
[1693927644001,5.36151426,1635.2,1634.8,6.11676]
[1693927644303,2.2945,1635.2,1634.8,18.35066]
[1693927644526,2.2945,1635.2,1634.8,20.797443]
[1693927644703,2.2945,1635.2,1634.8,21.41037505]
[1693927644904,2.2945,1635.2,1634.8,18.96359205]
[1693927645441,2.92502784,1635.2,1634.8,18.96359205]
[1693927645605,3.87746899,1635.2,1634.8,28.08054205]
[1693927645803,3.87746899,1635.2,1634.9,3.61293205]
[1693927645804,1.58296899,1635.2,1634.9,3.61293205]
[1693927646032,1.58296899,1635.2,1635.0,24.82609321]
[1693927646206,1.58296899,1635.2,1635.0,25.43902526]
[1693927646403,1.58296899,1635.2,1635.0,35.51373952]
[1693927646704,1.58296899,1635.2,1635.1,18.82749]
[1693927647307,1.58296899,1635.2,1635.1,18.34749]
[1693927647507,1.58296899,1635.2,1635.1,6.11583]
[1693927647924,1.58296899,1635.2,1635.1,12.23166]
[1693927648121,1.58296899,1635.2,1635.1,18.34749]
[1693927648539,0.95244115,1635.2,1635.1,18.34749]
[1693927649863,0.95244115,1635.2,1635.1,21.46808326]
[1693927650015,0.95244115,1635.2,1635.1,24.46808326]
[1693927650215,0.95244115,1635.2,1635.1,24.94808326]
[1693927650951,1.89796644,1635.6,1635.1,24.46808326]
[1693927650952,4.41398565,1635.5,1635.1,24.46808326]
[1693927651150,2.65745717,1635.4,1635.1,21.96042205]
[1693927651449,3.06701426,1635.4,1635.1,12.23166]
[1693927651761,1.06301702,1635.3,1635.1,12.23166]
[1693927651963,2.015434,1635.4,1635.1,12.23166]
[1693927652450,3.60995316,1635.4,1635.1,12.23166]
[1693927652743,4.31710293,1635.4,1635.1,12.23166]
[1693927653050,4.31710293,1635.4,1635.0,6.11601]
[1693927653051,5.61397457,1635.3,1635.0,6.11601]
[1693927653250,12.79205742,1635.3,1634.9,6.1164]
[1693927653441,2.65751201,1635.2,1634.9,6.1164]
[1693927653750,3.06701426,1635.1,1634.8,6.11679]
[1693927653929,4.25101789,1635.1,1634.6,6.11768]
[1693927654125,9.18284426,1635.1,1634.6,12.23521]
[1693927654335,2.54696031,1635.0,1634.6,6.11753]
[1693927654558,3.06701426,1634.9,1634.5,6.11805]
[1693927654869,4.01945541,1634.9,1634.6,6.11756]
[1693927655073,2.65751201,1634.8,1634.6,6.11756]
[1693927655567,2.65802847,1634.8,1634.6,6.11756]
[1693927655777,3.06701426,1634.7,1634.4,6.11842]
[1693927656073,3.06701426,1634.7,1634.4,6.11817]
[1693927656276,3.06701426,1634.7,1634.4,12.23662]
[1693927657337,3.06701426,1634.7,1634.3,6.1185]
[1693927657544,0.30670143,1634.6,1634.3,6.1185]
[1693927657873,3.06701426,1634.5,1634.3,6.1185]
[1693927659570,3.06701426,1634.5,1634.3,6.11881]
[1693927661775,9.18514426,1634.5,1634.0,6.12677]
[1693927661964,15.30327426,1634.5,1634.0,6.12692]
[1693927662171,0.91851443,1634.4,1634.0,6.12692]
[1693927662370,3.06701426,1634.3,1634.0,12.24687]
[1693927663205,3.06701426,1634.3,1634.0,6.12692]
[1693927664873,21.42361426,1634.3,1634.0,0.007]
[1693927665054,2.14236143,1634.2,1634.0,0.007]
[1693927665285,2.2914,1634.3,1634.0,12.2469]
[1693927665604,0.91851443,1634.4,1634.0,12.2469]
[1693927665605,2.3795,1634.5,1634.1,0.61293205]
[1693927665753,0.95244115,1634.8,1634.2,18.35736]
[1693927665954,3.06701426,1634.7,1634.3,0.61293205]
[1693927666258,5.41244042,1634.8,1634.4,18.35478]
[1693927666466,1.91019927,1634.8,1634.6,18.3531]
[1693927666681,4.89427857,1634.7,1634.6,17.21881659]
[1693927666857,3.61682523,1634.7,1634.6,17.21881659]
[1693927667058,2.02156986,1634.7,1634.6,17.21881659]
[1693927667269,1.59674509,1634.7,1634.6,17.21881659]
[1693927667699,1.59674509,1634.7,1634.6,19.79733125]
[1693927667903,1.59674509,1634.7,1634.6,26.4102633]
[1693927668326,1.59674509,1634.7,1634.6,26.8902633]
[1693927668952,1.59674509,1634.7,1634.6,18.31174864]
[1693927669168,1.59674509,1634.7,1634.6,11.10111659]
[1693927669372,1.59674509,1634.7,1634.6,17.21881659]
[1693927670286,1.59674509,1634.7,1634.6,11.10111659]
[1693927670589,0.95806628,1634.7,1634.5,6.11786]
[1693927670764,4.02508054,1634.7,1634.3,0.49211471]
[1693927671088,4.55533393,1634.7,1634.4,18.35504]
[1693927671385,0.95806628,1634.7,1634.4,18.35504]
[1693927672490,0.95806628,1634.7,1634.4,22.23367205]
[1693927672691,0.63916699,1634.7,1634.4,22.23367205]
[1693927673057,0.63916699,1634.7,1634.4,19.58167205]
[1693927674883,0.63916699,1634.7,1634.4,18.96874]
[1693927675410,0.63916699,1634.7,1634.4,22.09039505]
[1693927675708,0.63916699,1634.7,1634.6,12.2354]
[1693927676015,0.63916699,1634.7,1634.6,18.3531]
[1693927676518,0.63916699,1634.7,1634.6,30.73573205]
[1693927676717,0.63916699,1634.7,1634.6,31.34943205]
[1693927677006,0.63916699,1634.7,1634.6,33.79761462]
[1693927677575,0.63916699,1634.7,1634.6,40.19161462]
[1693927677779,0.63916699,1634.7,1634.6,43.25862888]
[1693927678201,0.45105277,1634.9,1634.8,3.0]
[1693927678482,1.59812493,1635.3,1635.2,24.4618]
[1693927678682,1.59812493,1635.3,1635.2,12.2309]
[1693927679214,1.59812493,1635.3,1634.8,6.11673]
[1693927679215,10.78021919,1635.3,1634.8,6.11673]
[1693927679413,4.14503618,1635.2,1635.0,6.11601]
[1693927679585,5.64101426,1635.2,1635.0,6.11601]
[1693927679781,5.64101426,1635.2,1634.4,5.652]
[1693927679782,11.75660426,1635.2,1634.8,12.23356]
[1693927679998,11.75660426,1635.2,1634.7,6.11709]
[1693927679999,17.87219426,1635.2,1634.7,6.11709]
[1693927680197,11.75660426,1635.2,1634.7,12.23442]
[1693927680805,5.64101426,1635.2,1634.7,18.35175]
[1693927681015,2.574,1635.2,1634.7,20.798675]
[1693927681216,2.574,1635.2,1634.7,21.41160705]
[1693927681415,1.59812493,1635.3,1634.8,0.61293205]
[1693927681598,1.59812493,1635.3,1634.9,24.46556]
[1693927681797,1.59812493,1635.3,1634.9,25.07849205]
[1693927682131,1.59812493,1635.3,1635.1,18.34749]
[1693927682513,2.5886,1635.5,1635.1,18.34749]
[1693927682713,2.5886,1635.7,1635.1,25.07625205]
[1693927682924,2.5886,1635.7,1635.2,0.61293205]
[1693927683124,2.5886,1635.7,1635.3,18.34467]
[1693927683591,1.59821222,1635.4,1635.3,17.70681499]
[1693927683792,1.59821222,1635.4,1635.3,17.70700499]
[1693927684406,1.91785467,1635.5,1635.3,17.70700499]
[1693927684791,4.5755839,1635.5,1635.3,17.70700499]
[1693927684995,1.59826229,1635.4,1635.3,17.70700499]
[1693927685192,3.19289983,1635.4,1635.3,18.34486]
[1693927685412,3.19289983,1635.4,1635.3,12.22978]
[1693927685413,2.65772923,1635.4,1635.3,12.22978]
[1693927685617,2.65772923,1635.4,1635.3,18.34486]
[1693927686417,2.65772923,1635.4,1635.3,20.790862]
[1693927686739,2.65772923,1635.4,1635.3,21.40379405]
[1693927687421,1.59463754,1635.4,1635.3,18.95779205]
[1693927688233,2.2273,1635.9,1635.3,18.34486]
[1693927688439,3.06701426,1635.8,1635.3,18.34486]
[1693927688812,3.06701426,1635.8,1635.1,3.6137]
[1693927689010,3.06701426,1635.8,1635.3,18.34505]
[1693927689256,0.30670143,1635.7,1635.3,18.34505]
[1693927689458,2.2273,1635.9,1635.3,18.34505]
[1693927689754,5.29431426,1635.9,1635.3,18.34505]
[1693927691441,0.63841136,1635.5,1635.3,18.34505]
[1693927693518,0.63841136,1635.5,1635.3,12.22997]
[1693927693844,3.06701426,1635.4,1635.2,6.11522]
[1693927694015,0.30670143,1635.3,1635.2,6.11522]
[1693927694214,0.30670143,1635.3,1635.0,6.11602]
[1693927694439,0.30670143,1635.3,1635.1,6.1157]
[1693927694649,0.30670143,1635.3,1635.1,12.23153]
[1693927695812,0.30670143,1635.3,1635.1,6.1157]
[1693927696224,3.06701426,1635.3,1634.9,6.11635]
[1693927696440,3.06701426,1635.3,1634.9,18.34944]
[1693927696658,3.06701426,1635.3,1634.9,12.23286]
[1693927696862,1.13399647,1635.0,1634.9,18.34944]
[1693927698354,1.13399647,1635.0,1634.9,19.44237205]
[1693927698862,1.13399647,1635.0,1634.9,20.05607205]
[1693927699247,1.13399647,1635.0,1634.9,18.34944]
[1693927703536,1.13399647,1635.0,1634.8,6.1166]
[1693927703811,1.13399647,1635.0,1634.7,6.11696]
[1693927704100,3.06701426,1634.9,1634.7,6.11696]
[1693927704411,3.06701426,1634.9,1634.8,6.11689]
[1693927704610,3.06701426,1634.9,1634.8,12.23384]
[1693927705274,5.72520832,1634.9,1634.8,12.23384]
[1693927705474,4.6619307,1634.9,1634.8,6.11689]
[1693927706259,4.6619307,1634.9,1634.7,12.23409]
[1693927706514,0.46619307,1634.8,1634.7,12.23409]
[1693927708483,3.06701426,1634.9,1634.7,12.23409]
[1693927708777,15.30030426,1634.9,1634.4,6.11816]
[1693927708995,15.30030426,1634.9,1634.4,12.23634]
[1693927709163,21.41701426,1634.9,1634.4,6.11841]
[1693927709520,8.25889143,1634.8,1634.3,6.60569045]
[1693927709736,0.63934072,1634.6,1634.3,0.48706045]
[1693927709880,3.06701426,1634.5,1634.3,0.48706045]
[1693927710231,3.06701426,1634.5,1634.1,6.73307]
[1693927710369,0.30670143,1634.4,1634.1,12.85264]
[1693927710716,3.37371569,1634.4,1634.1,6.73323]
[1693927710869,3.37371569,1634.4,1634.1,0.6137]
[1693927711059,1.5973314,1634.6,1634.1,6.11957]
[1693927711260,1.5973314,1634.6,1634.2,3.67994631]
[1693927711491,1.5973314,1634.6,1634.4,3.0]
[1693927711693,1.5973314,1634.6,1634.5,25.08521205]
[1693927712015,1.5973314,1634.6,1634.5,28.08521205]
[1693927712632,1.5973314,1634.6,1634.5,12.84907205]
[1693927712841,1.5973314,1634.6,1634.5,12.23614]
[1693927713011,1.5973314,1634.6,1634.5,6.11807]
[1693927713677,1.5973314,1634.6,1634.5,18.35421]
[1693927715328,0.63934072,1634.6,1634.5,18.35421]
[1693927715697,1.70271111,1634.6,1634.5,21.41438605]
[1693927715898,0.63934072,1634.6,1634.5,21.41438605]
[1693927716194,3.06701426,1634.6,1634.5,12.23614]
[1693927716528,1.70272094,1634.6,1634.5,12.23614]
[1693927717126,0.63934072,1634.6,1634.5,12.23614]
[1693927717427,2.87415412,1634.7,1634.5,12.23614]
[1693927717629,3.54466464,1634.7,1634.5,12.23614]
[1693927718659,2.87415412,1634.7,1634.5,12.23614]
[1693927718806,2.87415412,1634.7,1634.5,18.35421]
[1693927719461,2.87415412,1634.7,1634.5,18.96714205]
[1693927720320,2.87415412,1634.7,1634.5,25.36114205]
[1693927720545,2.87415412,1634.7,1634.6,0.61293205]
[1693927720739,2.87415412,1634.7,1634.6,21.82871626]
[1693927721926,2.87415412,1634.7,1634.6,22.30871626]
[1693927722340,0.63934072,1634.7,1634.6,22.30871626]
[1693927722541,0.63934072,1634.9,1634.6,22.30871626]
[1693927722742,0.63934072,1634.9,1634.6,29.31641626]
[1693927722952,0.63934072,1634.9,1634.7,1.61422136]
[1693927723116,0.63934072,1634.9,1634.8,12.2339]
[1693927723439,0.95799068,1634.9,1634.8,12.2339]
[1693927723643,2.02122787,1634.9,1634.8,12.2339]
[1693927723845,2.65809297,1634.9,1634.8,17.71288778]
[1693927724346,0.63966826,1634.9,1634.8,17.71288778]
[1693927724546,2.23452404,1634.9,1634.8,17.71288778]
[1693927724931,0.63966826,1634.9,1634.8,17.71288778]
[1693927725127,1.70290545,1634.9,1634.8,17.71288778]
[1693927725334,3.29778679,1634.9,1634.8,19.48417656]
[1693927725548,2.2345496,1634.9,1634.8,19.48417656]
[1693927725739,0.63966826,1635.0,1634.8,19.48417656]
[1693927726740,0.63966826,1635.0,1634.8,17.71288778]
[1693927727148,0.63966826,1635.0,1634.8,11.59593778]
[1693927727454,10.7808732,1635.0,1634.6,6.11749]
[1693927728019,3.70668252,1634.9,1634.3,0.6137]
[1693927728218,22.05674252,1634.9,1634.4,12.23652]
[1693927728416,2.20567425,1634.8,1634.4,12.23652]
[1693927728619,3.06701426,1634.7,1634.4,12.23652]
[1693927729052,3.06701426,1634.7,1634.4,18.35497]
[1693927729889,2.20567425,1634.8,1634.4,18.35497]
[1693927730175,5.28096826,1634.9,1634.4,18.35497]
[1693927730375,3.59511109,1634.8,1634.4,18.35497]
[1693927730547,3.59511109,1634.8,1634.4,12.23652]
[1693927730749,9.71207109,1634.8,1634.4,6.11825]
[1693927730953,9.71207109,1634.8,1634.3,6.11878]
[1693927730954,24.59799109,1634.8,1634.3,6.11878]
[1693927731155,18.48103109,1634.8,1634.3,6.11878]
[1693927731351,7.96575311,1634.7,1634.3,6.11878]
[1693927731675,9.18483426,1634.6,1634.3,6.11878]
[1693927731976,21.42035426,1634.6,1634.1,6.11948]
[1693927732156,15.30253426,1634.6,1634.1,6.11948]
[1693927732473,1.53025343,1634.5,1634.1,12.23881]
[1693927732673,9.18546426,1634.4,1634.0,0.007]
[1693927732876,20.08199426,1634.4,1634.0,0.007]
[1693927733050,7.82217154,1634.3,1634.0,6.12679]
[1693927733238,3.06701426,1634.2,1634.0,6.12679]
[1693927733441,3.54404684,1634.2,1634.0,6.12679]
[1693927733841,3.54404684,1634.2,1634.0,0.007]
[1693927734074,9.66333684,1634.2,1634.0,0.007]
[1693927734379,15.78262684,1634.2,1634.0,0.007]
[1693927735074,9.66333684,1634.2,1634.0,0.007]
[1693927735275,0.96633368,1634.1,1634.0,0.007]
[1693927735441,10.15291794,1634.1,1634.0,0.007]
[1693927735638,4.03334794,1634.1,1634.0,0.007]
[1693927735880,10.15291794,1634.1,1634.0,0.007]
[1693927736184,16.27248794,1634.1,1634.0,0.007]
[1693927736358,10.15291794,1634.1,1634.0,0.007]
[1693927737098,22.39205794,1634.1,1634.0,0.007]
[1693927737969,16.27248794,1634.1,1634.0,0.007]
[1693927738197,23.99132583,1634.1,1634.0,0.007]
[1693927738399,23.99132583,1634.1,1633.6,12.34244]
[1693927738400,20.46754866,1634.1,1633.6,12.34244]
[1693927738717,5.46614684,1634.0,1633.6,6.2212]
[1693927739006,8.78011283,1633.9,1633.6,6.2212]
[1693927739211,3.06701426,1633.8,1633.6,6.2212]
[1693927741187,1.59755083,1633.9,1633.6,20.310524]
[1693927741521,0.63902033,1633.9,1633.6,20.310524]
[1693927741864,0.63902033,1633.9,1633.6,20.92345605]
[1693927742170,0.63902033,1633.9,1633.7,0.61293205]
[1693927742393,0.63902033,1633.9,1633.8,18.3621]
[1693927743273,0.63902033,1633.9,1633.8,20.25960321]
[1693927744398,0.63902033,1633.9,1633.8,27.26653526]
[1693927744719,0.63902033,1633.9,1633.8,32.60553526]
[1693927744941,0.63902033,1633.9,1633.8,33.21923526]
[1693927745145,0.63902033,1633.9,1633.8,36.21923526]
[1693927746131,0.63902033,1634.3,1633.8,36.21923526]
[1693927746305,0.63902033,1634.3,1633.9,4.40989041]
[1693927746500,1.06361518,1634.3,1634.0,30.59935]
[1693927746701,1.06361518,1634.3,1634.0,25.09241205]
[1693927746948,1.70263551,1634.4,1634.0,25.09241205]
[1693927747100,0.63902033,1634.4,1634.2,1.859]
[1693927747300,3.29792147,1634.4,1634.3,18.35646]
[1693927748345,0.63902033,1634.4,1634.3,18.35646]
[1693927748502,0.63902033,1634.4,1634.3,12.23764]
[1693927748834,1.59683457,1634.5,1634.3,12.23764]
[1693927749397,1.59683457,1634.5,1634.3,18.35646]
[1693927750445,1.59683457,1634.5,1634.3,20.192106]
[1693927753852,0.63902033,1634.5,1634.3,12.23764]
[1693927754020,2.23425864,1634.4,1634.3,18.35646]
[1693927754352,1.70247555,1634.4,1634.3,12.23764]
[1693927754514,0.63902033,1634.4,1634.3,12.23764]
[1693927754715,1.70247555,1634.4,1634.3,12.23764]
[1693927754915,0.63902033,1634.4,1634.3,12.23764]
[1693927756201,3.70603459,1634.4,1634.1,6.11953]
[1693927756354,3.70603459,1634.4,1634.0,6.11966]
[1693927756355,3.43761772,1634.3,1634.0,6.11966]
[1693927756518,3.43761772,1634.3,1634.1,12.23913]
[1693927756718,3.43761772,1634.3,1633.7,6.61707139]
[1693927756719,3.06701426,1634.2,1633.7,6.61707139]
[1693927756919,3.06701426,1634.2,1633.9,6.12014]
[1693927757124,3.59667603,1634.2,1633.9,18.36078]
[1693927757849,3.59667603,1634.2,1633.9,12.24046]
[1693927758726,3.59667603,1634.2,1633.9,18.36078]
[1693927758927,2.2466,1634.3,1633.9,18.97371205]
[1693927759143,2.5405,1634.4,1634.1,18.3585]
[1693927759325,2.5405,1634.4,1634.1,12.239]
[1693927759532,5.60751426,1634.4,1634.1,6.1195]
[1693927759853,0.56075143,1634.3,1634.1,6.1195]
[1693927760764,0.63934121,1634.2,1634.1,6.1195]
[1693927760972,1.70279643,1634.2,1634.1,6.1195]
[1693927761370,1.70279643,1634.2,1634.1,4.98488168]
[1693927761578,1.70279643,1634.2,1634.1,11.10445168]
[1693927761736,1.70279643,1634.2,1634.1,19.6206581]
[1693927762466,1.70279643,1634.2,1634.1,21.4796581]
[1693927762969,0.63934121,1634.2,1634.1,21.4796581]
[1693927763178,0.63934121,1634.2,1634.1,27.8736581]
[1693927763469,0.63934121,1634.2,1634.1,35.03437236]
[1693927765163,1.27868242,1634.4,1634.1,35.03437236]
[1693927765475,1.27868242,1634.4,1634.3,24.47528]
[1693927765653,1.27868242,1634.4,1634.3,25.08821205]
[1693927765838,1.27868242,1634.4,1634.3,31.96221205]
[1693927766374,0.95917375,1634.6,1634.3,9.34593205]
[1693927766687,0.95917375,1634.6,1634.5,8.253]